bitfinex-derivatives/quotes_ETHF0:USTF0_20241207
["timestamp","ask_amount","ask_price","bid_price","bid_amount"]
[1733601021258,0.17406,4017.6,4017.5,0.55846]
[1733601021457,0.95696,4017.6,4017.5,0.55846]
[1733601021662,0.7829,4017.6,4017.5,0.55846]
[1733601022169,1.1697,4017.6,4017.5,0.55846]
[1733601023371,1.1697,4017.6,4017.5,0.3844]
[1733601023556,1.34376,4017.6,4017.5,0.3844]
[1733601024373,1.34376,4017.6,4017.5,0.55846]
[1733601024873,1.34376,4017.6,4017.5,0.3844]
[1733601025258,1.34376,4017.6,4017.5,0.55846]
[1733601026979,1.1697,4017.6,4017.5,0.55846]
[1733601027167,1.34376,4017.6,4017.5,0.55846]
[1733601028166,6.13938184,4017.9,4017.5,0.3844]
[1733601028364,4.10518184,4018.1,4018.0,0.17404]
[1733601028569,1.34764,4018.1,4018.0,0.17404]
[1733601028977,1.1736,4018.1,4018.0,0.17404]
[1733601029166,2.93158184,4018.3,4017.7,3.90105287]
[1733601029365,6.13938184,4018.4,4017.8,4.28445287]
[1733601029570,6.13938184,4018.4,4017.9,3.90105287]
[1733601029571,3.2078,4018.4,4017.9,3.90105287]
[1733601029968,3.2078,4018.4,4018.3,0.17403]
[1733601030663,3.2078,4018.4,4018.3,0.58633]
[1733601036768,3.34718184,4019.0,4018.3,0.58633]
[1733601036769,2.93158184,4019.0,4018.3,0.4123]
[1733601036965,3.10557184,4019.3,4018.9,0.174]
[1733601037171,3.6151,4019.4,4019.0,0.3989]
[1733601037172,6.54668184,4019.4,4019.0,0.3989]
[1733601037373,0.17399,4019.3,4019.0,0.3989]
[1733601037769,3.78908,4019.4,4019.0,0.5729]
[1733601038572,3.78908,4019.4,4019.0,0.3989]
[1733601038880,0.17399,4019.3,4019.0,0.3989]
[1733601039072,3.6151,4019.4,4019.0,0.3989]
[1733601039482,0.17399,4019.2,4019.0,0.3989]
[1733601039668,0.17399,4019.2,4018.8,0.83901]
[1733601039669,0.174,4019.0,4018.8,0.665]
[1733601039981,0.385,4018.9,4018.8,0.665]
[1733601040178,0.7734,4018.9,4018.8,0.665]
[1733601041276,0.7734,4018.9,4018.8,0.83901]
[1733601041473,0.7734,4018.9,4018.8,0.665]
[1733601041681,0.7734,4018.9,4018.8,0.83901]
[1733601042276,0.7734,4018.9,4018.8,0.665]
[1733601044478,0.7734,4018.9,4018.8,0.83901]
[1733601044882,0.7734,4018.9,4018.8,0.665]
[1733601045181,0.9474,4018.9,4018.8,0.665]
[1733601045878,0.9474,4018.9,4018.2,3.2078]
[1733601045879,0.7734,4018.9,4018.2,3.8728]
[1733601046079,0.17401,4018.7,4018.5,0.17402]
[1733601046284,0.391,4018.6,4018.3,0.4056]
[1733601046583,0.56502,4018.6,4018.4,0.17402]
[1733601046885,0.391,4018.6,4018.4,0.17402]
[1733601047089,0.391,4018.6,4018.3,0.57963]
[1733601047090,0.56502,4018.6,4018.3,0.57963]
[1733601047887,0.17402,4018.5,4018.3,0.57963]
[1733601048074,0.391,4018.6,4018.3,0.57963]
[1733601048274,0.17403,4018.4,4018.3,0.4056]
[1733601048989,0.17403,4018.3,4018.2,0.665]
[1733601049178,0.58803,4018.3,4018.2,0.665]
[1733601050485,0.58803,4018.3,4018.2,0.83903]
[1733601050486,0.414,4018.3,4018.2,0.83903]
[1733601050784,0.414,4018.3,4018.2,0.665]
[1733601050986,0.56502,4018.6,4018.4,0.17402]
[1733601051182,0.56502,4018.6,4018.2,0.665]
[1733601051183,0.56502,4018.6,4018.3,0.17403]
[1733601051379,0.391,4018.6,4018.3,0.17403]
[1733601051681,0.3833,4018.8,4018.3,0.17403]
[1733601051682,0.3833,4018.8,4018.3,3.2078]
[1733601051885,0.55901,4018.9,4018.6,0.17401]
[1733601052191,0.17401,4018.8,4018.5,0.17402]
[1733601052391,0.17401,4018.8,4018.5,0.665]
[1733601052686,0.17401,4018.8,4018.5,0.83902]
[1733601052990,0.17401,4018.8,4018.5,0.665]
[1733601053292,0.17401,4018.7,4018.5,0.665]
[1733601054688,0.4039,4018.6,4018.5,0.665]
[1733601055585,0.57792,4018.6,4018.5,0.665]
[1733601056487,0.4039,4018.6,4018.3,7.10885287]
[1733601056693,0.17403,4018.4,4018.3,3.2078]
[1733601057593,0.17403,4018.4,4017.9,5.85220218]
[1733601057594,0.17404,4018.0,4017.9,3.90105287]
[1733601057800,0.17405,4017.9,4017.8,7.28290287]
[1733601057999,0.17405,4017.9,4017.7,1.0558]
[1733601058000,0.3969,4017.9,4017.7,4.29185287]
[1733601058296,0.17405,4017.8,4017.7,4.29185287]
[1733601058803,0.17405,4017.8,4017.7,0.3908]
[1733601058998,0.3969,4017.9,4017.7,0.3908]
[1733601059203,0.57095,4017.9,4017.7,0.56486]
[1733601059500,0.3969,4017.9,4017.7,4.29185287]
[1733601059704,0.3969,4017.9,4017.7,4.46590287]
[1733601059902,0.57095,4017.9,4017.7,4.29185287]
[1733601060295,0.3969,4017.9,4017.7,4.46590287]
[1733601060495,0.57095,4017.9,4017.7,4.46590287]
[1733601060690,0.57095,4017.9,4017.7,4.29185287]
[1733601061002,0.57095,4017.9,4017.7,0.3908]
[1733601061407,0.57095,4017.9,4017.7,0.56485]
[1733601061803,0.57095,4017.9,4017.7,4.46590287]
[1733601062005,0.3969,4017.9,4017.7,4.46590287]
[1733601062204,0.57095,4017.9,4017.7,4.29185287]
[1733601062398,0.17405,4017.8,4017.7,4.29185287]
[1733601062705,0.3969,4017.9,4017.5,4.56605287]
[1733601063010,0.3969,4017.9,4017.5,4.74011287]
[1733601063011,0.3862,4017.7,4017.5,4.74011287]
[1733601063202,0.4077,4017.6,4017.5,4.74011287]
[1733601063396,3.2078,4018.3,4017.5,4.56605287]
[1733601063604,1.186,4018.2,4017.6,3.90105287]
[1733601063909,0.17404,4018.1,4017.7,0.17406]
[1733601064094,0.17404,4018.1,4017.8,0.17405]
[1733601064506,3.2078,4018.3,4017.7,3.90105287]
[1733601064704,3.2078,4018.3,4018.1,0.17404]
[1733601064905,3.2078,4018.3,4017.9,3.90105287]
[1733601065206,3.2078,4018.3,4018.0,4.47579287]
[1733601065710,3.38183,4018.3,4018.0,4.47579287]
[1733601066304,3.38183,4018.3,4018.0,0.4007]
[1733601066505,0.17403,4018.2,4018.0,4.30175287]
[1733601066707,3.38183,4018.3,4018.0,0.4007]
[1733601067103,3.2078,4018.3,4018.0,0.4007]
[1733601067303,0.17403,4018.2,4018.0,0.4007]
[1733601067504,0.17404,4018.1,4018.0,0.4007]
[1733601067700,0.17405,4017.9,4017.8,0.665]
[1733601068008,0.17406,4017.7,4017.6,0.4122]
[1733601068408,1.2006,4018.1,4017.5,3.90105287]
[1733601068801,0.17405,4017.8,4017.5,4.07511287]
[1733601069208,1.2006,4018.1,4017.4,1.0793]
[1733601069507,1.2006,4018.1,4017.8,0.17405]
[1733601069707,1.37464,4018.1,4017.4,4.98035287]
[1733601069909,1.37464,4018.1,4017.7,0.17405]
[1733601070204,1.37464,4018.1,4017.5,0.3768]
[1733601070205,1.2006,4018.1,4017.5,0.3768]
[1733601070406,0.17405,4018.0,4017.6,0.17406]
[1733601070606,0.17405,4018.0,4017.5,0.3768]
[1733601070803,0.17405,4018.0,4017.7,0.17406]
[1733601071005,1.37464,4018.1,4017.7,0.17406]
[1733601071209,1.2006,4018.1,4017.8,0.17405]
[1733601071404,1.2006,4018.1,4017.5,0.7519]
[1733601071813,1.2006,4018.1,4017.8,0.17405]
[1733601072015,1.37464,4018.1,4017.8,0.17405]
[1733601072318,1.2006,4018.1,4017.8,0.17405]
[1733601072514,1.37464,4018.1,4017.8,0.17405]
[1733601072714,1.2006,4018.1,4017.5,4.65295287]
[1733601072907,1.37464,4018.1,4017.7,0.17405]
[1733601073614,1.2006,4018.1,4017.5,4.65295287]
[1733601073914,1.2006,4018.1,4018.0,0.17404]
[1733601073915,0.3988,4018.1,4018.0,0.17404]
[1733601074318,3.2078,4018.3,4018.0,0.665]
[1733601074517,2.93158184,4018.7,4018.1,0.7878]
[1733601074708,2.93158184,4018.7,4018.5,0.17402]
[1733601074913,7.35758184,4018.8,4018.5,0.17402]
[1733601075519,7.35758184,4018.8,4018.1,1.1687]
[1733601075825,7.35758184,4018.8,4018.6,0.17402]
[1733601076218,4.426,4018.8,4018.6,0.17402]
[1733601076523,1.2182,4018.8,4018.6,0.17402]
[1733601076818,1.2182,4018.8,4018.5,0.17402]
[1733601077315,1.39221,4018.8,4018.5,0.17402]
[1733601077521,1.2182,4018.8,4018.5,0.17402]
[1733601077824,0.17401,4018.7,4018.5,3.90105287]
[1733601078018,6.31337184,4019.3,4018.9,0.174]
[1733601078213,0.3845,4019.1,4018.9,0.174]
[1733601078421,0.3845,4019.1,4018.7,4.07506287]
[1733601078714,0.3845,4019.1,4018.7,3.90105287]
[1733601078918,0.5585,4019.1,4018.7,0.17401]
[1733601079118,0.5585,4019.1,4018.6,3.90105287]
[1733601079119,0.174,4019.0,4018.6,3.90105287]
[1733601079424,0.5585,4019.1,4018.8,0.17401]
[1733601079719,0.3845,4019.1,4018.8,0.17401]
[1733601079925,0.3845,4019.1,4018.7,0.3858]
[1733601079926,0.3845,4019.1,4018.9,0.174]
[1733601080217,0.3845,4019.1,4018.7,4.28685287]
[1733601080420,0.3845,4019.1,4018.9,0.174]
[1733601080614,0.3845,4019.1,4019.0,0.174]
[1733601082014,1.1697,4019.6,4019.0,5.09639336]
[1733601082323,1.1697,4019.6,4019.3,4.07439647]
[1733601082820,1.1697,4019.6,4019.3,0.17399]
[1733601082821,1.34367,4019.6,4019.3,0.17399]
[1733601083023,1.1697,4019.6,4019.3,0.17398]
[1733601083224,1.1697,4019.6,4019.3,0.57118]
[1733601084220,2.92808042,4019.4,4019.3,0.57118]
[1733601084622,2.92808042,4019.5,4019.3,0.57118]
[1733601084825,2.92808042,4019.5,4019.4,0.17398]
[1733601085513,2.92745189,4019.5,4019.4,0.17398]
[1733601085721,1.1697,4019.6,4019.4,0.17398]
[1733601086127,1.1697,4019.6,4019.3,0.3972]
[1733601086319,2.92744658,4019.5,4019.4,0.17398]
[1733601086515,2.92741385,4019.5,4019.4,0.17398]
[1733601086721,4.09711385,4019.6,4019.3,0.3972]
[1733601086921,2.92741385,4019.5,4019.4,0.17398]
[1733601087722,2.92741385,4019.5,4019.3,0.3972]
[1733601087723,4.09711385,4019.6,4019.5,0.17398]
[1733601088025,0.3773,4019.6,4019.5,0.17398]
[1733601089826,3.68281385,4019.9,4019.4,1.30473086]
[1733601090024,3.68281385,4019.9,4019.4,1.71893086]
[1733601090423,3.68281385,4019.9,4019.3,0.3972]
[1733601090623,0.17397,4019.7,4019.4,0.17398]
[1733601090928,3.81844471,4019.8,4019.3,0.3972]
[1733601091129,3.10138385,4019.8,4019.4,0.17398]
[1733601091330,0.7554,4019.9,4019.3,0.3972]
[1733601091526,0.92936,4019.9,4019.3,0.3972]
[1733601091830,0.7554,4019.9,4019.4,0.89103086]
[1733601092031,0.7554,4019.9,4019.8,0.17396]
[1733601093027,3.2078,4020.0,4019.9,0.17396]
[1733601094523,0.3922,4020.3,4020.0,0.17396]
[1733601094722,0.3922,4020.3,4020.1,1.29163086]
[1733601094919,0.3922,4020.3,4020.2,0.17395]
[1733601095128,3.2078,4020.6,4020.1,1.29163086]
[1733601095327,3.2078,4020.6,4020.4,0.89103086]
[1733601095723,3.2078,4020.6,4020.4,1.06497086]
[1733601095928,3.2078,4020.6,4020.4,0.89103086]
[1733601096130,0.17394,4020.5,4020.2,0.17395]
[1733601096632,0.3795,4020.4,4020.1,0.4006]
[1733601096929,0.17395,4020.3,4020.1,0.4006]
[1733601097324,0.3795,4020.4,4020.1,0.57455]
[1733601097325,0.7903,4020.2,4020.1,0.57455]
[1733601097627,0.7903,4020.2,4020.1,0.4006]
[1733601098928,0.17396,4020.0,4019.7,2.10359022]
[1733601099128,0.17396,4019.8,4019.7,0.3856]
[1733601099325,0.17396,4019.8,4019.7,0.665]
[1733601101834,0.17399,4019.3,4019.2,0.17399]
[1733601102042,0.17399,4019.4,4019.3,0.17398]
[1733601102639,0.17398,4019.5,4019.4,0.17398]
[1733601103737,0.17398,4019.5,4019.3,0.17398]
[1733601103937,0.17398,4019.4,4019.3,0.17398]
[1733601104129,0.17398,4019.5,4019.3,0.17398]
[1733601104534,0.789,4019.6,4019.2,0.665]
[1733601104740,0.17399,4019.3,4019.2,0.665]
[1733601104929,0.17399,4019.3,4019.2,0.83899]
[1733601105134,0.789,4019.6,4019.2,0.665]
[1733601105340,0.17399,4019.3,4019.2,0.665]
[1733601106442,0.17399,4019.3,4019.2,0.83899]
[1733601106741,0.17399,4019.3,4019.2,0.665]
[1733601106936,3.2078,4019.5,4018.9,1.92962022]
[1733601107138,3.2078,4019.5,4019.0,0.665]
[1733601107342,0.174,4019.0,4018.9,0.665]
[1733601107539,0.174,4019.0,4018.9,0.839]
[1733601107739,0.174,4019.0,4018.9,0.665]
[1733601108242,0.174,4019.0,4018.9,0.839]
[1733601108437,0.174,4019.0,4018.9,0.665]
[1733601109834,0.174,4019.0,4018.8,0.665]
[1733601110238,0.174,4019.0,4018.8,0.83901]
[1733601110939,0.3759,4018.9,4018.8,0.83901]
[1733601111842,0.174,4019.0,4018.8,0.665]
[1733601112043,0.174,4019.0,4018.8,0.83901]
[1733601112436,0.3845,4019.4,4018.8,0.665]
[1733601112632,0.174,4019.0,4018.8,0.83901]
[1733601113044,0.3845,4019.4,4018.8,0.665]
[1733601113236,0.3845,4019.4,4018.8,0.83901]
[1733601113435,0.174,4019.0,4018.8,0.83901]
[1733601113738,0.174,4019.0,4018.8,0.665]
[1733601114051,0.174,4019.0,4018.8,0.83901]
[1733601114240,0.3845,4019.4,4018.8,0.665]
[1733601114636,0.3845,4019.4,4018.8,0.83901]
[1733601114842,0.3845,4019.4,4018.9,0.174]
[1733601115044,0.3845,4019.4,4018.8,0.665]
[1733601115241,0.174,4019.1,4018.8,0.83901]
[1733601115435,0.3845,4019.4,4018.8,0.665]
[1733601115640,0.17399,4019.2,4018.9,0.174]
[1733601116539,0.17399,4019.2,4019.1,0.89102837]
[1733601117335,0.3845,4019.4,4019.1,0.89102837]
[1733601117540,0.17399,4019.2,4019.1,0.89102837]
[1733601119242,0.174,4018.9,4018.7,0.4127]
[1733601119442,0.17401,4018.8,4018.7,1.0767]
[1733601119643,0.56781,4018.8,4018.7,1.0767]
[1733601122039,0.56781,4018.8,4018.7,0.4127]
[1733601122443,0.96401,4018.8,4018.7,0.4127]
[1733601123648,1.36511,4018.8,4018.7,0.4127]
[1733601124952,1.1911,4018.8,4018.5,0.664]
[1733601125146,0.17402,4018.6,4018.5,0.664]
[1733601127044,0.17402,4018.6,4018.5,0.17402]
[1733601127543,0.17402,4018.5,4018.4,1.72904837]
[1733601128050,0.17402,4018.5,4018.4,1.55502837]
[1733601128451,0.17402,4018.5,4018.4,5.9895855]
[1733601128649,1.1911,4018.8,4018.4,5.9895855]
[1733601128849,0.17402,4018.6,4018.5,3.9036977]
[1733601129151,0.17402,4018.5,4018.4,0.664]
[1733601131252,1.1911,4018.8,4018.4,0.664]
[1733601131253,0.4011,4018.8,4018.6,0.17401]
[1733601131447,0.4011,4018.8,4018.7,0.89102837]
[1733601131649,0.17399,4019.3,4018.9,0.174]
[1733601131847,3.2078,4019.4,4019.2,0.89102837]
[1733601131848,3.38178,4019.4,4019.2,0.89102837]
[1733601132049,3.2078,4019.4,4019.3,0.3809]
[1733601132748,3.38178,4019.4,4019.3,0.3809]
[1733601133450,3.38178,4019.4,4019.0,4.56763883]
[1733601133451,3.2078,4019.4,4019.0,4.56763883]
[1733601133656,0.17399,4019.1,4019.0,0.664]
[1733601134654,3.2078,4019.4,4019.0,0.664]
[1733601134854,0.17399,4019.1,4019.0,0.664]
[1733601135847,0.17399,4019.2,4019.0,0.838]
[1733601136054,0.17399,4019.3,4019.1,0.17399]
[1733601136255,3.38178,4019.4,4019.1,1.06501837]
[1733601136856,3.2078,4019.4,4019.1,0.89102837]
[1733601137059,3.2078,4019.4,4019.2,0.17399]
[1733601137352,3.2078,4019.4,4019.1,0.89102837]
[1733601137353,3.2078,4019.4,4019.3,0.17399]
[1733601137754,3.2078,4019.4,4019.1,0.89102837]
[1733601138155,3.38178,4019.4,4019.1,0.89102837]
[1733601138362,0.17399,4019.3,4019.1,0.89102837]
[1733601138555,0.57099,4019.3,4019.1,1.06501837]
[1733601139155,0.397,4019.3,4019.1,0.89102837]
[1733601139355,0.17399,4019.2,4019.1,0.89102837]
[1733601139855,0.57099,4019.3,4019.1,0.89102837]
[1733601140755,0.57099,4019.3,4019.1,1.06501837]
[1733601140961,0.97229,4019.3,4019.1,1.06501837]
[1733601141156,0.7983,4019.3,4019.1,0.89102837]
[1733601141364,0.17399,4019.2,4019.1,0.89102837]
[1733601141857,0.7983,4019.3,4019.0,0.664]
[1733601142056,0.17399,4019.2,4018.9,0.664]
[1733601142251,0.174,4019.0,4018.9,0.664]
[1733601142457,4.25343222,4019.2,4018.6,0.3981]
[1733601142758,0.17401,4018.7,4018.6,1.0621]
[1733601142958,0.17401,4018.7,4018.6,0.664]
[1733601143462,0.17401,4018.7,4018.6,4.56763883]
[1733601145368,0.17401,4018.7,4018.6,0.664]
[1733601145573,0.17401,4018.7,4018.6,4.74165883]
[1733601146374,0.4142,4018.8,4018.6,4.74165883]
[1733601146375,0.4142,4018.8,4018.7,0.17401]
[1733601146674,0.4142,4018.8,4018.7,4.61330405]
[1733601146872,0.58821,4018.8,4018.7,4.61323249]
[1733601147368,0.4142,4018.8,4018.7,4.43922249]
[1733601147577,3.2078,4018.9,4018.8,0.17401]
[1733601147772,3.2078,4018.9,4018.8,10.46384219]
[1733601149376,3.2078,4018.9,4018.8,10.46468976]
[1733601149578,3.2078,4018.9,4018.8,4.61408006]
[1733601149783,3.2078,4018.9,4018.8,10.47749397]
[1733601149986,3.2078,4018.9,4018.8,10.30348397]
[1733601150285,3.3818,4018.9,4018.8,10.30348397]
[1733601150579,3.2078,4018.9,4018.8,10.30348397]
[1733601150881,3.2078,4018.9,4018.8,10.47749397]
[1733601151084,3.3818,4018.9,4018.8,10.30348397]
[1733601151271,3.7764,4018.9,4018.8,10.30348397]
[1733601151476,3.6024,4018.9,4018.8,10.30348397]
[1733601151676,3.2078,4018.9,4018.8,4.61549988]
[1733601152071,3.2078,4018.9,4018.8,4.44148988]
[1733601152472,3.3818,4018.9,4018.8,4.44148988]
[1733601153380,3.2078,4018.9,4018.8,4.44148988]
[1733601153580,3.2078,4018.9,4018.8,4.81818988]
[1733601153787,3.3818,4018.9,4018.8,4.81818988]
[1733601155292,3.3818,4018.9,4018.8,4.44148988]
[1733601155587,3.3818,4018.9,4018.8,10.30748332]
[1733601155891,3.3818,4018.9,4018.8,4.44148988]
[1733601156187,3.3818,4018.9,4018.8,10.30748332]
[1733601156580,3.3818,4018.9,4018.8,10.30842236]
[1733601156778,3.3818,4018.9,4018.8,3.91071517]
[1733601157384,0.17401,4018.8,4018.7,5.86599344]
[1733601157582,0.17401,4018.8,4018.7,10.30832205]
[1733601158587,6.13521385,4018.9,4018.6,4.95827405]
[1733601158783,0.55461,4018.7,4018.6,0.664]
[1733601161092,0.55461,4018.7,4018.6,0.83802]
[1733601161893,0.55461,4018.7,4018.6,0.664]
[1733601163281,0.17402,4018.5,4018.4,3.91057405]
[1733601163592,0.17403,4018.4,4018.3,4.98967405]
[1733601163789,0.17403,4018.4,4018.3,0.4151]
[1733601163790,0.56753,4018.4,4018.3,0.4151]
[1733601163990,0.56753,4018.4,4018.2,3.91057405]
[1733601163991,0.17403,4018.3,4018.2,3.91057405]
[1733601164196,0.17403,4018.2,4018.1,3.91057405]
[1733601164691,0.17403,4018.2,4018.1,4.4420787]
[1733601164884,0.17403,4018.2,4018.1,3.91046033]
[1733601165085,4.21194222,4018.4,4018.0,3.6144]
[1733601165285,0.58854,4018.1,4018.0,3.6144]
[1733601165486,0.17405,4017.9,4017.8,4.57546033]
[1733601165693,0.17405,4017.9,4017.8,0.665]
[1733601165882,0.17405,4017.8,4017.7,4.57546033]
[1733601166091,0.56755,4017.8,4017.7,0.665]
[1733601166787,0.56755,4017.8,4017.7,5.08602955]
[1733601166989,0.56755,4017.8,4017.7,4.57444051]
[1733601167989,0.56755,4017.8,4017.7,0.665]
[1733601168394,0.17406,4017.7,4017.6,3.90944051]
[1733601168595,0.17406,4017.6,4017.5,7.11531321]
[1733601168892,0.17406,4017.6,4017.5,3.90751321]
[1733601169095,1.28452837,4017.8,4017.3,4.96311321]
[1733601169396,0.3746,4017.5,4017.4,3.90751321]
[1733601169589,0.54866,4017.5,4017.4,3.90751321]
[1733601170197,0.17408,4017.2,4017.1,3.90751321]
[1733601170400,0.17408,4017.2,4017.1,4.30451321]
[1733601170696,0.17408,4017.2,4017.1,0.397]
[1733601173995,0.17409,4017.0,4016.9,0.89102837]
[1733601174191,0.4106,4017.3,4016.9,0.89102837]
[1733601174392,0.58467,4017.3,4017.2,0.17408]
[1733601174594,0.17408,4017.1,4017.0,0.17408]
[1733601175094,0.17408,4017.1,4016.9,1.06511837]
[1733601175288,0.17408,4017.1,4017.0,0.3938]
[1733601177698,0.4106,4017.3,4017.0,0.3938]
[1733601177898,0.17408,4017.2,4017.0,0.3938]
[1733601178100,0.17408,4017.1,4017.0,0.3938]
[1733601178692,0.4106,4017.3,4017.0,0.3938]
[1733601179196,0.17408,4017.1,4017.0,0.3938]
[1733601179394,0.4106,4017.3,4017.0,0.3938]
[1733601179898,0.17408,4017.2,4017.0,0.3938]
[1733601180592,0.17405,4017.8,4017.2,0.17408]
[1733601180799,0.17407,4017.4,4017.1,0.57438]
[1733601180994,0.17408,4017.1,4017.0,0.3938]
[1733601187592,0.89102837,4017.1,4016.5,3.2078]
[1733601187796,0.1741,4016.6,4016.5,3.38191]
[1733601188806,0.89102837,4017.1,4016.5,3.2078]
[1733601189500,0.95468,4017.2,4017.1,0.17408]
[1733601189893,0.7806,4017.2,4017.1,0.17408]
[1733601190092,0.7806,4017.2,4017.1,0.57328]
[1733601194602,3.2078,4017.4,4017.1,0.3992]
[1733601194997,3.2078,4017.4,4017.2,0.17407]
[1733601195198,3.2078,4017.4,4017.1,0.3992]
[1733601195393,0.17407,4017.3,4017.1,0.57328]
[1733601196195,3.2078,4017.4,4017.1,0.3992]
[1733601196397,0.17408,4017.2,4017.1,0.3992]
[1733601196607,3.2078,4017.4,4017.1,0.3992]
[1733601196912,0.17408,4017.3,4017.1,0.57328]
[1733601197500,0.17408,4017.2,4017.1,0.3992]
[1733601197902,3.2078,4017.4,4017.1,0.3992]
[1733601198103,0.17408,4017.3,4017.1,0.3992]
[1733601198309,3.2078,4017.4,4017.1,0.3992]
[1733601198511,0.17408,4017.2,4017.1,0.3992]
[1733601200604,3.2078,4017.4,4017.1,0.3992]
[1733601200799,0.17408,4017.2,4017.1,0.57328]
[1733601201011,0.17408,4017.2,4017.1,0.3992]
[1733601202601,3.2078,4017.4,4017.3,0.17407]
[1733601202808,3.2078,4017.9,4017.3,0.89102837]
[1733601203008,0.17405,4017.8,4017.6,1.06508837]
[1733601203209,0.17405,4017.8,4017.7,0.4155]
[1733601206110,0.89102837,4017.8,4017.5,0.665]
[1733601206311,0.17406,4017.6,4017.5,0.665]
[1733601208107,0.17406,4017.6,4017.5,0.83906]
[1733601209007,0.17406,4017.6,4017.5,0.665]
[1733601209310,0.17407,4017.3,4017.2,0.17407]
[1733601209513,0.17407,4017.3,4017.2,10.46151577]
[1733601210913,3.10148385,4017.3,4017.2,0.17407]
[1733601211404,0.17408,4017.2,4017.1,1.45300837]
[1733601211607,3.10149385,4017.2,4017.1,1.27892837]
[1733601212316,3.10149385,4017.2,4017.1,1.45300837]
[1733601212816,3.10149385,4017.2,4017.1,1.27892837]
[1733601213315,0.17408,4017.2,4017.1,1.27892837]
[1733601213614,0.17408,4017.2,4017.1,0.3879]
[1733601214212,3.91107157,4017.2,4017.0,0.665]
[1733601214406,0.17408,4017.1,4017.0,0.665]
[1733601214609,0.17408,4017.1,4016.8,4.08509704]
[1733601214610,3.91107157,4017.2,4016.8,0.17409]
[1733601214910,0.17409,4016.9,4016.8,4.75009704]
[1733601215215,3.1029555,4016.9,4016.8,4.08509704]
[1733601215415,3.1029555,4016.9,4016.8,0.17409]
[1733601215816,3.1029555,4016.9,4016.8,4.08509704]
[1733601216016,3.1029555,4016.9,4016.8,0.17409]
[1733601216713,2.9288655,4016.9,4016.7,5.85063541]
[1733601216912,0.17409,4016.8,4016.7,6.02473541]
[1733601217913,3.1029555,4016.8,4016.7,4.29460704]
[1733601218113,0.17411,4016.5,4016.4,0.665]
[1733601218917,0.17411,4016.5,4016.4,5.26516445]
[1733601219116,0.17411,4016.5,4016.4,13.06100012]
[1733601219316,0.775,4016.8,4016.4,21.73873747]
[1733601219516,0.1741,4016.7,4016.5,5.49118282]
[1733601219711,0.1741,4016.7,4016.6,4.42605445]
[1733601222626,0.1741,4016.7,4016.6,4.42438359]
[1733601223625,0.1741,4016.7,4016.6,5.31541196]
[1733601223822,0.9491,4016.8,4016.6,5.31541196]
[1733601224026,0.9491,4016.8,4016.7,4.42438359]
[1733601224520,0.17409,4016.8,4016.7,4.42438359]
[1733601225528,3.77519,4016.9,4016.7,4.42438359]
[1733601225828,3.2078,4016.9,4016.8,21.24186568]
[1733601226020,3.2078,4016.9,4016.8,13.44603001]
[1733601226329,3.2078,4016.9,4016.8,23.19677682]
[1733601226528,3.2078,4016.9,4016.8,23.60827682]
[1733601226726,0.7798,4017.2,4016.8,23.43418682]
[1733601226920,0.7798,4017.2,4017.1,1.06510837]
[1733601227121,0.3827,4017.2,4017.1,13.31299836]
[1733601227427,0.7904,4017.5,4017.1,13.13817333]
[1733601227625,0.17407,4017.4,4017.3,5.86745433]
[1733601227822,0.17407,4017.4,4017.3,10.29109289]
[1733601228027,0.17407,4017.4,4017.3,10.67509289]
[1733601228526,0.3971,4017.5,4017.4,0.17407]
[1733601228828,0.3971,4017.5,4017.4,10.46516289]
[1733601229232,0.3971,4017.5,4017.4,4.59770856]
[1733601229425,0.3971,4017.5,4017.4,4.08568249]
[1733601229730,0.3971,4017.5,4017.4,4.42349946]
[1733601230028,0.3971,4017.5,4017.4,4.59756946]
[1733601230229,0.3971,4017.5,4017.4,4.42349946]
[1733601230425,0.57116,4017.5,4017.4,4.42349946]
[1733601230929,0.57116,4017.5,4017.3,6.42552433]
[1733601231425,0.57116,4017.5,4017.4,3.91146997]
[1733601231735,0.57116,4017.5,4017.4,4.42342501]
[1733601233031,0.57116,4017.5,4017.4,4.59749501]
[1733601233326,0.3971,4017.5,4017.4,10.46494934]
[1733601233528,0.57116,4017.5,4017.4,10.46494934]
[1733601234027,0.57116,4017.5,4017.4,0.17407]
[1733601234735,0.3971,4017.5,4017.4,0.17407]
[1733601234935,0.57116,4017.5,4017.4,0.17407]
[1733601235529,0.3971,4017.5,4017.4,0.17407]
[1733601235832,0.17407,4017.4,4017.3,0.55807]
[1733601236132,3.10274541,4017.4,4017.3,0.384]
[1733601236532,2.92867541,4017.4,4017.3,0.55807]
[1733601238135,2.92867541,4017.5,4017.3,0.384]
[1733601238338,2.92867541,4017.5,4017.4,1.06509837]
[1733601238829,2.92867541,4017.5,4017.4,1.46119837]
[1733601239041,6.31053541,4017.6,4017.5,0.17406]
[1733601239427,6.13647541,4017.6,4017.5,0.17406]
[1733601240339,6.13647541,4017.6,4017.4,1.28712837]
[1733601240340,2.92867541,4017.8,4017.4,5.19847867]
[1733601240635,2.92867541,4018.0,4017.7,0.89102837]
[1733601240833,2.92867541,4018.0,4017.9,0.17405]
[1733601241040,3.2078,4018.1,4017.9,10.46429922]
[1733601241226,3.2078,4018.1,4018.0,4.97586963]
[1733601241937,2.92867541,4018.5,4018.0,5.3128637]
[1733601242128,3.2078,4018.6,4018.5,0.17402]
[1733601242328,3.2078,4018.6,4018.5,0.83902]
[1733601242641,3.2078,4018.6,4018.5,1.0606]
[1733601242642,3.38182,4018.6,4018.5,1.0606]
[1733601242838,3.2078,4018.6,4018.5,1.23462]
[1733601243537,3.2078,4018.6,4018.5,5.14456072]